[Event "Live Chess"]
[Site "Chess.com"]
[Date "2023.05.20"]
[Round "-"]
[White "WelshTiger"]
[Black "Conradical12"]
[Result "1-0"]
[WhiteElo "2389"]
[BlackElo "1597"]
[TimeControl "300"]
[EndTime "15:02:47 PDT"]
[Termination "WelshTiger won by resignation"]

1. e4 {[%clk 0:04:58.7]} 1... e5 {[%clk 0:04:56.9]} 2. Nf3 {[%clk 0:04:57.5]}
2... Nc6 {[%clk 0:04:54.9]} 3. d4 {[%clk 0:04:55]} 3... exd4 {[%clk 0:04:53.1]}
4. Nxd4 {[%clk 0:04:54.9]} 4... Nf6 {[%clk 0:04:52.3]} 5. Nxc6 {[%clk
0:04:53.8]} 5... bxc6 {[%clk 0:04:51.9]} 6. Bd3 {[%clk 0:04:52.2]} 6... Bc5
{[%clk 0:04:50.2]} 7. h3 {[%clk 0:04:50.2]} 7... d6 {[%clk 0:04:49.6]} 8. O-O
{[%clk 0:04:48.6]} 8... O-O {[%clk 0:04:49]} 9. Qe2 {[%clk 0:04:47.8]} 9... Re8
{[%clk 0:04:45.4]} 10. Nc3 {[%clk 0:04:46.5]} 10... Rb8 {[%clk 0:04:43.9]} 11.
Rb1 {[%clk 0:04:37.2]} 11... Nd5 {[%clk 0:04:43.2]} 12. Nxd5 {[%clk 0:04:27.9]}
12... cxd5 {[%clk 0:04:42.1]} 13. Qf3 {[%clk 0:04:27.4]} 13... dxe4 {[%clk
0:04:36.8]} 14. Bxe4 {[%clk 0:04:27.3]} 14... Bd7 {[%clk 0:04:34.4]} 15. c3
{[%clk 0:04:22.2]} 15... c6 {[%clk 0:04:33.4]} 16. Bxc6 {[%clk 0:04:18.6]} 16...
Bxc6 {[%clk 0:04:32]} 17. Qxc6 {[%clk 0:04:17.7]} 17... Qf6 {[%clk 0:04:30.9]}
18. Qf3 {[%clk 0:04:04.1]} 18... Qg6 {[%clk 0:04:29]} 19. Be3 {[%clk 0:03:58.4]}
19... Bxe3 {[%clk 0:04:25.5]} 20. fxe3 {[%clk 0:03:58.3]} 20... Re4 {[%clk
0:04:23]} 21. b3 {[%clk 0:03:49.6]} 21... Rbe8 {[%clk 0:04:22]} 22. Rbe1 {[%clk
0:03:48.3]} 22... R4e6 {[%clk 0:04:16.6]} 23. c4 {[%clk 0:03:47.2]} 23... Qg5
{[%clk 0:04:05.7]} 24. Qf4 {[%clk 0:03:43.9]} 24... Qg6 {[%clk 0:04:02.5]} 25.
Qf5 {[%clk 0:03:40.7]} 25... Qg3 {[%clk 0:04:00.3]} 26. Qxf7+ {[%clk 0:03:39.4]}
1-0

[Event "Live Chess"]
[Site "Chess.com"]
[Date "2023.05.20"]
[Round "-"]
[White "DaveL5678"]
[Black "weibs440"]
[Result "0-1"]
[WhiteElo "1009"]
[BlackElo "941"]
[TimeControl "300"]
[EndTime "15:02:50 PDT"]
[Termination "weibs440 won by checkmate"]

1. e4 {[%clk 0:04:57.4]} 1... d6 {[%clk 0:04:58.9]} 2. d4 {[%clk 0:04:55.5]}
2... Nf6 {[%clk 0:04:58]} 3. e5 {[%clk 0:04:53.3]} 3... dxe5 {[%clk 0:04:56.7]}
4. dxe5 {[%clk 0:04:51.8]} 4... Qxd1+ {[%clk 0:04:55.5]} 5. Kxd1 {[%clk
0:04:51.7]} 5... Ng4 {[%clk 0:04:54.8]} 6. f4 {[%clk 0:04:48.9]} 6... Nf2+
{[%clk 0:04:53.4]} 7. Ke2 {[%clk 0:04:47.3]} 7... Nxh1 {[%clk 0:04:53.3]} 8. Be3
{[%clk 0:04:44]} 8... Bg4+ {[%clk 0:04:48.1]} 9. Ke1 {[%clk 0:04:39.1]} 9... e6
{[%clk 0:04:43.6]} 10. Nd2 {[%clk 0:04:35.9]} 10... Bb4 {[%clk 0:04:40.1]} 11.
c3 {[%clk 0:04:33.3]} 11... Ba5 {[%clk 0:04:39.5]} 12. g3 {[%clk 0:04:17.9]}
12... Bh5 {[%clk 0:04:19.6]} 13. Bg2 {[%clk 0:04:15.4]} 13... Nxg3 {[%clk
0:04:16.9]} 14. hxg3 {[%clk 0:04:11.6]} 14... Nc6 {[%clk 0:04:13.4]} 15. Bf3
{[%clk 0:03:58.7]} 15... Bxf3 {[%clk 0:04:11.4]} 16. Ngxf3 {[%clk 0:03:58.6]}
16... O-O-O {[%clk 0:04:09.5]} 17. Nc4 {[%clk 0:03:52.3]} 17... Rd3 {[%clk
0:03:41.7]} 18. Ke2 {[%clk 0:03:36.8]} 18... Rhd8 {[%clk 0:03:39.2]} 19. Nxa5
{[%clk 0:03:20.1]} 19... Nxa5 {[%clk 0:03:36.4]} 20. Ne1 {[%clk 0:03:02.7]}
20... R3d7 {[%clk 0:03:23.9]} 21. b3 {[%clk 0:02:50]} 21... c6 {[%clk 0:03:04]}
22. Nf3 {[%clk 0:02:41.9]} 22... b6 {[%clk 0:02:58.8]} 23. Nd4 {[%clk
0:02:30.6]} 23... Kc7 {[%clk 0:02:49.4]} 24. b4 {[%clk 0:02:18.5]} 24... Nb7
{[%clk 0:02:48.1]} 25. Nb3 {[%clk 0:02:08.2]} 25... c5 {[%clk 0:02:33.4]} 26.
bxc5 {[%clk 0:02:02.9]} 26... bxc5 {[%clk 0:02:30.2]} 27. Nxc5 {[%clk
0:01:55.4]} 27... Nxc5 {[%clk 0:02:28.5]} 28. Bxc5 {[%clk 0:01:54.3]} 28... a5
{[%clk 0:02:18.5]} 29. Rb1 {[%clk 0:01:49.7]} 29... Kc6 {[%clk 0:02:14.5]} 30.
Bb6 {[%clk 0:01:46]} 30... Rb8 {[%clk 0:02:10]} 31. Rd1 {[%clk 0:01:24.5]} 31...
Rxd1 {[%clk 0:02:02.7]} 32. Kxd1 {[%clk 0:01:22.8]} 32... Rxb6 {[%clk
0:02:00.9]} 33. Kc2 {[%clk 0:01:22.7]} 33... Kc5 {[%clk 0:01:58.5]} 34. Kd3
{[%clk 0:01:20.9]} 34... Rb2 {[%clk 0:01:54.1]} 35. c4 {[%clk 0:01:17.8]} 35...
Rxa2 {[%clk 0:01:52.2]} 36. g4 {[%clk 0:01:15.8]} 36... Ra4 {[%clk 0:01:50.8]}
37. Ke4 {[%clk 0:01:14.5]} 37... Rxc4+ {[%clk 0:01:49.4]} 38. Kd3 {[%clk
0:01:12.6]} 38... Rxf4 {[%clk 0:01:47.5]} 39. Kc3 {[%clk 0:01:10.2]} 39... Rb4
{[%clk 0:01:45.3]} 40. g5 {[%clk 0:01:07.7]} 40... a4 {[%clk 0:01:44.3]} 41. g6
{[%clk 0:01:06.1]} 41... hxg6 {[%clk 0:01:41.2]} 42. Kc2 {[%clk 0:01:06]} 42...
a3 {[%clk 0:01:37.8]} 43. Kc1 {[%clk 0:01:03.8]} 43... a2 {[%clk 0:01:36.2]} 44.
Kc2 {[%clk 0:01:02.3]} 44... a1=R {[%clk 0:01:31.4]} 45. Kc3 {[%clk 0:01:01.3]}
45... Ra3+ {[%clk 0:01:29.8]} 46. Kc2 {[%clk 0:00:59.6]} 46... Rh3 {[%clk
0:01:28.3]} 47. Kd2 {[%clk 0:00:55.7]} 47... Ra4 {[%clk 0:01:26.8]} 48. Kc2
{[%clk 0:00:53.9]} 48... Ra2+ {[%clk 0:01:24.5]} 49. Kb1 {[%clk 0:00:53]} 49...
Rg2 {[%clk 0:01:22.9]} 50. Kc1 {[%clk 0:00:51.5]} 50... Rh1# {[%clk 0:01:21.4]}
0-1

[Event "Live Chess"]
[Site "Chess.com"]
[Date "2023.05.20"]
[Round "-"]
[White "JanMur7"]
[Black "JoeRoot66"]
[Result "0-1"]
[WhiteElo "1973"]
[BlackElo "1910"]
[TimeControl "300"]
[EndTime "15:02:58 PDT"]
[Termination "JoeRoot66 won by resignation"]

1. e4 {[%clk 0:04:57.9]} 1... c6 {[%clk 0:04:59.1]} 2. d4 {[%clk 0:04:56.8]}
2... d5 {[%clk 0:04:59]} 3. Nc3 {[%clk 0:04:56.7]} 3... dxe4 {[%clk 0:04:58.7]}
4. Nxe4 {[%clk 0:04:56.6]} 4... Nf6 {[%clk 0:04:58.4]} 5. Nxf6+ {[%clk
0:04:55.7]} 5... exf6 {[%clk 0:04:58.3]} 6. Nf3 {[%clk 0:04:55.4]} 6... Bd6
{[%clk 0:04:58.2]} 7. Bd3 {[%clk 0:04:54.5]} 7... O-O {[%clk 0:04:58.1]} 8. O-O
{[%clk 0:04:52.9]} 8... Re8 {[%clk 0:04:57.8]} 9. c3 {[%clk 0:04:52.2]} 9... Nd7
{[%clk 0:04:57.1]} 10. Qc2 {[%clk 0:04:51.6]} 10... Nf8 {[%clk 0:04:56.4]} 11.
Bd2 {[%clk 0:04:49.2]} 11... Be6 {[%clk 0:04:56]} 12. Rae1 {[%clk 0:04:48.5]}
12... Qd7 {[%clk 0:04:55.5]} 13. a3 {[%clk 0:04:46.3]} 13... Bg4 {[%clk
0:04:49.7]} 14. Nh4 {[%clk 0:04:42.8]} 14... Ng6 {[%clk 0:04:46.9]} 15. Nxg6
{[%clk 0:04:41]} 15... hxg6 {[%clk 0:04:46.8]} 16. g3 {[%clk 0:04:38.2]} 16...
Bf3 {[%clk 0:04:35.4]} 17. Rxe8+ {[%clk 0:04:26.4]} 17... Rxe8 {[%clk
0:04:35.3]} 18. Re1 {[%clk 0:04:25.2]} 18... Rxe1+ {[%clk 0:04:33.6]} 19. Bxe1
{[%clk 0:04:24.3]} 19... Qe6 {[%clk 0:04:15.6]} 20. Bd2 {[%clk 0:04:19.4]} 20...
f5 {[%clk 0:04:13.6]} 21. Qa4 {[%clk 0:04:07.6]} 21... f4 {[%clk 0:04:08.7]} 22.
Qc4 {[%clk 0:03:53.9]} 22... fxg3 {[%clk 0:04:02.3]} 23. hxg3 {[%clk 0:03:49.4]}
23... Bd5 {[%clk 0:03:44.1]} 24. Qa4 {[%clk 0:03:45]} 24... a6 {[%clk
0:03:29.6]} 25. c4 {[%clk 0:03:41.2]} 25... Be4 {[%clk 0:03:24.5]} 26. Qc2
{[%clk 0:03:39.3]} 26... f5 {[%clk 0:03:20.4]} 27. Bxe4 {[%clk 0:03:37.1]} 27...
Qxe4 {[%clk 0:03:17]} 28. Qxe4 {[%clk 0:03:34.7]} 28... fxe4 {[%clk 0:03:16.9]}
29. a4 {[%clk 0:03:29.8]} 29... Kf7 {[%clk 0:03:13.9]} 30. Kf1 {[%clk
0:03:22.6]} 30... Ke6 {[%clk 0:03:12.6]} 31. Bc3 {[%clk 0:03:18.8]} 31... b5
{[%clk 0:02:53.9]} 32. cxb5 {[%clk 0:02:59]} 32... axb5 {[%clk 0:02:50.5]} 33.
a5 {[%clk 0:02:50.2]} 33... Kd5 {[%clk 0:02:49.3]} 34. a6 {[%clk 0:02:46]} 34...
Bb8 {[%clk 0:02:44.2]} 35. Ba5 {[%clk 0:02:40.5]} 35... Ba7 {[%clk 0:02:39]} 36.
Bb4 {[%clk 0:02:38.6]} 36... Bxd4 {[%clk 0:02:34]} 37. Bc3 {[%clk 0:02:37.2]}
37... Ba7 {[%clk 0:02:21.9]} 38. b3 {[%clk 0:02:29.2]} 38... c5 {[%clk 0:02:18]}
39. Ke2 {[%clk 0:02:25.5]} 39... c4 {[%clk 0:02:15.1]} 40. bxc4+ {[%clk
0:02:22.8]} 40... Kxc4 {[%clk 0:02:15]} 41. Bxg7 {[%clk 0:02:21.7]} 41... b4
{[%clk 0:02:13.8]} 42. f3 {[%clk 0:02:14]} 42... exf3+ {[%clk 0:02:12.3]} 43.
Kxf3 {[%clk 0:02:13.9]} 43... Kb5 {[%clk 0:02:09.2]} 44. Kg4 {[%clk 0:02:06.9]}
44... Kxa6 {[%clk 0:02:07.3]} 45. Kg5 {[%clk 0:02:06]} 45... Kb5 {[%clk
0:02:06.7]} 46. Kxg6 {[%clk 0:02:04.5]} 46... Kc4 {[%clk 0:02:05.8]} 47. Bb2
{[%clk 0:02:01.9]} 47... Bd4 {[%clk 0:02:01.5]} 48. Bc1 {[%clk 0:02:00.2]} 48...
Kc3 {[%clk 0:01:59]} 49. g4 {[%clk 0:01:58]} 49... Kc2 {[%clk 0:01:57.8]} 50.
Bg5 {[%clk 0:01:50.8]} 50... b3 {[%clk 0:01:49.5]} 51. Bf6 {[%clk 0:01:49.6]}
51... Bxf6 {[%clk 0:01:41.1]} 52. Kxf6 {[%clk 0:01:49.5]} 52... b2 {[%clk
0:01:41]} 53. g5 {[%clk 0:01:49.4]} 53... b1=Q {[%clk 0:01:40.2]} 54. g6 {[%clk
0:01:49.3]} 54... Qb8 {[%clk 0:01:34.9]} 55. Kf7 {[%clk 0:01:49.2]} 55... Qc7+
{[%clk 0:01:33.6]} 56. Kf8 {[%clk 0:01:48.1]} 56... Qd8+ {[%clk 0:01:32.9]} 57.
Kf7 {[%clk 0:01:47.3]} 57... Qd7+ {[%clk 0:01:32.3]} 58. Kf8 {[%clk 0:01:46.6]}
58... Qd6+ {[%clk 0:01:31.1]} 59. Kf7 {[%clk 0:01:45.6]} 59... Qf4+ {[%clk
0:01:30.6]} 60. Ke7 {[%clk 0:01:41.6]} 60... Qe5+ {[%clk 0:01:28.9]} 61. Kf7
{[%clk 0:01:40.5]} 61... Qf5+ {[%clk 0:01:28.5]} 62. Kg7 {[%clk 0:01:39.3]}
62... Kd3 {[%clk 0:01:27.8]} 63. Kh6 {[%clk 0:01:38.6]} 63... Qf8+ {[%clk
0:01:23.7]} 64. g7 {[%clk 0:01:37.2]} 64... Qg8 {[%clk 0:01:22.9]} 65. Kg6
{[%clk 0:01:35.9]} 65... Ke4 {[%clk 0:01:21.8]} 66. Kf6 {[%clk 0:01:34.2]} 66...
Kd5 {[%clk 0:01:19.5]} 67. Kg6 {[%clk 0:01:34.1]} 67... Ke6 {[%clk 0:01:18.5]}
0-1

[Event "Live Chess"]
[Site "Chess.com"]
[Date "2023.05.20"]
[Round "-"]
[White "Missedidea"]
[Black "IgorSchukin"]
[Result "1-0"]
[WhiteElo "1736"]
[BlackElo "1736"]
[TimeControl "300"]
[EndTime "15:03:13 PDT"]
[Termination "Missedidea won by resignation"]

1. d4 {[%clk 0:04:58]} 1... d5 {[%clk 0:04:58.6]} 2. c4 {[%clk 0:04:56.9]} 2...
e5 {[%clk 0:04:56.3]} 3. dxe5 {[%clk 0:04:54.9]} 3... d4 {[%clk 0:04:55.3]} 4.
e4 {[%clk 0:04:54]} 4... Nc6 {[%clk 0:04:53.3]} 5. f4 {[%clk 0:04:52.7]} 5... f6
{[%clk 0:04:51.9]} 6. Nf3 {[%clk 0:04:49.3]} 6... Bg4 {[%clk 0:04:49.4]} 7. Nbd2
{[%clk 0:04:43]} 7... Bb4 {[%clk 0:04:47.2]} 8. Bd3 {[%clk 0:04:40.9]} 8... Bxf3
{[%clk 0:04:41.7]} 9. Qxf3 {[%clk 0:04:38.9]} 9... fxe5 {[%clk 0:04:37.2]} 10.
f5 {[%clk 0:04:33.9]} 10... Nf6 {[%clk 0:04:33.8]} 11. g4 {[%clk 0:04:32.4]}
11... Nd7 {[%clk 0:04:25.7]} 12. h4 {[%clk 0:04:29.6]} 12... Nc5 {[%clk
0:04:20.2]} 13. Bf1 {[%clk 0:04:13.8]} 13... d3 {[%clk 0:04:15.2]} 14. a3 {[%clk
0:04:08.5]} 14... Bxd2+ {[%clk 0:04:12.9]} 15. Bxd2 {[%clk 0:04:06.9]} 15... O-O
{[%clk 0:04:04.3]} 16. O-O-O {[%clk 0:04:00.4]} 16... Nb3+ {[%clk 0:03:59.4]}
17. Kb1 {[%clk 0:03:58.9]} 17... Nxd2+ {[%clk 0:03:49.5]} 18. Rxd2 {[%clk
0:03:57.2]} 18... Na5 {[%clk 0:03:35.5]} 19. Rxd3 {[%clk 0:03:48.3]} 19... Qe7
{[%clk 0:03:30]} 20. Rd5 {[%clk 0:03:46]} 20... b6 {[%clk 0:03:24.9]} 21. Be2
{[%clk 0:03:39.2]} 21... Rad8 {[%clk 0:03:22.2]} 22. g5 {[%clk 0:03:33.5]} 22...
Rxd5 {[%clk 0:03:20.8]} 23. cxd5 {[%clk 0:03:30.9]} 23... c5 {[%clk 0:03:05.1]}
24. Qc3 {[%clk 0:03:20.6]} 24... Nb7 {[%clk 0:02:51.7]} 25. Ba6 {[%clk
0:02:40.5]} 25... Nd6 {[%clk 0:02:49.6]} 26. Re1 {[%clk 0:02:36.8]} 26... Qf7
{[%clk 0:02:36.4]} 27. Qf3 {[%clk 0:02:34.1]} 27... Qc7 {[%clk 0:02:24.6]} 28.
Qg3 {[%clk 0:02:31.9]} 28... Qe7 {[%clk 0:02:20.7]} 29. f6 {[%clk 0:02:28.5]}
29... Qe8 {[%clk 0:02:16.7]} 30. Bf1 {[%clk 0:02:21.6]} 30... Qg6 {[%clk
0:02:01.9]} 31. Bg2 {[%clk 0:02:17.9]} 31... gxf6 {[%clk 0:01:59.4]} 32. Bh3
{[%clk 0:02:12]} 32... Nxe4 {[%clk 0:01:50.7]} 33. Be6+ {[%clk 0:02:09.8]} 33...
Kh8 {[%clk 0:01:48.4]} 34. Qd3 {[%clk 0:02:01.5]} 34... Nd6 {[%clk 0:01:36.4]}
35. Qxg6 {[%clk 0:01:58]} 35... hxg6 {[%clk 0:01:35]} 36. gxf6 {[%clk
0:01:56.7]} 36... Rxf6 {[%clk 0:01:34]} 37. Rxe5 {[%clk 0:01:55.8]} 37... Kg7
{[%clk 0:01:28.4]} 38. h5 {[%clk 0:01:53.8]} 38... gxh5 {[%clk 0:01:26.7]} 39.
Rxh5 {[%clk 0:01:51.7]} 39... Kg6 {[%clk 0:01:23.9]} 40. Rh8 {[%clk 0:01:49.9]}
40... Rf2 {[%clk 0:01:19]} 41. Rg8+ {[%clk 0:01:48.3]} 41... Kh5 {[%clk
0:01:14.7]} 42. Rg7 {[%clk 0:01:46]} 42... Nc4 {[%clk 0:01:08.9]} 43. b4 {[%clk
0:01:42.8]} 43... Nxa3+ {[%clk 0:01:05.9]} 44. Kc1 {[%clk 0:01:40.5]} 44... cxb4
{[%clk 0:01:03.3]} 45. d6 {[%clk 0:01:38]} 45... Rc2+ {[%clk 0:00:41.2]} 46. Kd1
{[%clk 0:01:35.2]} 46... Rc6 {[%clk 0:00:35]} 47. d7 {[%clk 0:01:30.4]} 47...
Rd6+ {[%clk 0:00:30.3]} 48. Kc1 {[%clk 0:01:28]} 48... Nb5 {[%clk 0:00:27.5]}
49. Bg4+ {[%clk 0:01:25.3]} 49... Kh6 {[%clk 0:00:25.7]} 50. Rg8 {[%clk
0:01:24.1]} 50... a5 {[%clk 0:00:14.9]} 51. d8=Q {[%clk 0:01:21.8]} 51... Rxd8
{[%clk 0:00:13.8]} 52. Rxd8 {[%clk 0:01:20.7]} 52... Kg5 {[%clk 0:00:13.4]} 53.
Rd5+ {[%clk 0:01:19.1]} 53... Kxg4 {[%clk 0:00:12.6]} 54. Rxb5 {[%clk
0:01:17.8]} 54... Kf4 {[%clk 0:00:12.2]} 55. Rxb6 {[%clk 0:01:16.9]} 55... Ke4
{[%clk 0:00:11.8]} 56. Kb2 {[%clk 0:01:15.3]} 56... Kd4 {[%clk 0:00:10.9]} 57.
Kb3 {[%clk 0:01:14.5]} 57... Kc5 {[%clk 0:00:10.3]} 58. Rb8 {[%clk 0:01:13.2]}
58... Kc6 {[%clk 0:00:08.6]} 59. Ka4 {[%clk 0:01:10.6]} 59... Kc5 {[%clk
0:00:07.8]} 60. Kxa5 {[%clk 0:01:09.1]} 1-0

[Event "Live Chess"]
[Site "Chess.com"]
[Date "2023.05.20"]
[Round "-"]
[White "CeladonFish"]
[Black "SupremeTactician"]
[Result "0-1"]
[WhiteElo "1165"]
[BlackElo "2367"]
[TimeControl "300"]
[EndTime "15:03:14 PDT"]
[Termination "SupremeTactician won by resignation"]

1. d4 {[%clk 0:04:59.4]} 1... Nf6 {[%clk 0:04:57.4]} 2. c4 {[%clk 0:04:58.5]}
2... e6 {[%clk 0:04:55.8]} 3. Nc3 {[%clk 0:04:58.2]} 3... Bb4 {[%clk 0:04:54.8]}
4. Bf4 {[%clk 0:04:57.8]} 4... Bxc3+ {[%clk 0:04:54]} 5. bxc3 {[%clk 0:04:57.4]}
5... d5 {[%clk 0:04:52.5]} 6. cxd5 {[%clk 0:04:55.2]} 6... exd5 {[%clk
0:04:50.5]} 7. Nf3 {[%clk 0:04:53.9]} 7... O-O {[%clk 0:04:49.2]} 8. e3 {[%clk
0:04:53.3]} 8... Ne4 {[%clk 0:04:47.4]} 9. Qc2 {[%clk 0:04:47.3]} 9... Bf5
{[%clk 0:04:45.1]} 10. Bd3 {[%clk 0:04:45.2]} 10... c6 {[%clk 0:04:43.9]} 11. h3
{[%clk 0:04:43.7]} 11... Nd7 {[%clk 0:04:42.7]} 12. g4 {[%clk 0:04:42.8]} 12...
Bg6 {[%clk 0:04:41.7]} 13. Nh4 {[%clk 0:04:39.1]} 13... Qxh4 {[%clk 0:04:38.8]}
0-1

[Event "Live Chess"]
[Site "Chess.com"]
[Date "2023.05.20"]
[Round "-"]
[White "Singapourfeuj"]
[Black "scarletmojito"]
[Result "1-0"]
[WhiteElo "2236"]
[BlackElo "1860"]
[TimeControl "300"]
[EndTime "15:03:18 PDT"]
[Termination "Singapourfeuj won by checkmate"]

1. d4 {[%clk 0:04:58.2]} 1... c5 {[%clk 0:04:57.9]} 2. d5 {[%clk 0:04:57.3]}
2... b6 {[%clk 0:04:57.8]} 3. Nc3 {[%clk 0:04:55.1]} 3... d6 {[%clk 0:04:56.9]}
4. e4 {[%clk 0:04:54.3]} 4... f6 {[%clk 0:04:56.2]} 5. Nf3 {[%clk 0:04:52.8]}
5... Kf7 {[%clk 0:04:55.1]} 6. Be2 {[%clk 0:04:51.7]} 6... Ke8 {[%clk 0:04:55]}
7. O-O {[%clk 0:04:50.6]} 7... Nh6 {[%clk 0:04:53.8]} 8. a4 {[%clk 0:04:49.6]}
8... Nf7 {[%clk 0:04:52.5]} 9. h3 {[%clk 0:04:47.8]} 9... Bd7 {[%clk 0:04:51.3]}
10. Be3 {[%clk 0:04:46.1]} 10... Qc7 {[%clk 0:04:50.5]} 11. Nd2 {[%clk
0:04:44.8]} 11... g6 {[%clk 0:04:49.9]} 12. f4 {[%clk 0:04:43.7]} 12... Bg7
{[%clk 0:04:49.3]} 13. Bf3 {[%clk 0:04:42.9]} 13... Nd8 {[%clk 0:04:44.7]} 14.
Qe2 {[%clk 0:04:41.5]} 14... Nb7 {[%clk 0:04:43.8]} 15. Nc4 {[%clk 0:04:38.4]}
15... Rf8 {[%clk 0:04:41.6]} 16. Rae1 {[%clk 0:04:35.3]} 16... Kf7 {[%clk
0:04:41]} 17. e5 {[%clk 0:04:34.1]} 17... dxe5 {[%clk 0:04:39.2]} 18. fxe5
{[%clk 0:04:33.3]} 18... f5 {[%clk 0:04:38.7]} 19. e6+ {[%clk 0:04:32]} 19...
Bxe6 {[%clk 0:04:37.8]} 20. dxe6+ {[%clk 0:04:31.2]} 20... Kxe6 {[%clk
0:04:35.7]} 21. Bf4+ {[%clk 0:04:29.7]} 21... Be5 {[%clk 0:04:35.4]} 22. Qxe5+
{[%clk 0:04:27.6]} 22... Qxe5 {[%clk 0:04:34.3]} 23. Rxe5+ {[%clk 0:04:26.5]}
23... Kf7 {[%clk 0:04:33.8]} 24. Bxb7 {[%clk 0:04:25.4]} 24... Nd7 {[%clk
0:04:32.3]} 25. Bxa8 {[%clk 0:04:24.5]} 25... Nxe5 {[%clk 0:04:31.9]} 26. Bxe5
{[%clk 0:04:23.1]} 26... Rxa8 {[%clk 0:04:31.3]} 27. Rd1 {[%clk 0:04:22]} 27...
Ke6 {[%clk 0:04:29.1]} 28. Kf2 {[%clk 0:04:18.9]} 28... a6 {[%clk 0:04:28.6]}
29. Bh2 {[%clk 0:04:16.7]} 29... g5 {[%clk 0:04:24.9]} 30. Nxb6 {[%clk
0:04:13.6]} 30... Rb8 {[%clk 0:04:23.4]} 31. a5 {[%clk 0:04:12.8]} 31... f4
{[%clk 0:04:21.5]} 32. Ne4 {[%clk 0:04:09.3]} 32... Kf5 {[%clk 0:04:20.7]} 33.
Nxc5 {[%clk 0:04:07]} 33... Rc8 {[%clk 0:04:19]} 34. b4 {[%clk 0:04:05.9]} 34...
h5 {[%clk 0:04:17.2]} 35. Rd5+ {[%clk 0:04:04.1]} 35... e5 {[%clk 0:04:16.1]}
36. c4 {[%clk 0:04:01.3]} 36... g4 {[%clk 0:04:15.1]} 37. hxg4+ {[%clk
0:04:00.1]} 37... hxg4 {[%clk 0:04:15]} 38. g3 {[%clk 0:03:59.3]} 38... Rh8
{[%clk 0:04:09.1]} 39. Kg1 {[%clk 0:03:54.8]} 39... f3 {[%clk 0:04:07.8]} 40.
Rd2 {[%clk 0:03:53.1]} 40... e4 {[%clk 0:04:05.8]} 41. Nxe4 {[%clk 0:03:51.9]}
41... Kxe4 {[%clk 0:04:05]} 42. Nd5 {[%clk 0:03:50.9]} 42... Rc8 {[%clk
0:03:57.3]} 43. c5 {[%clk 0:03:49.8]} 43... Rd8 {[%clk 0:03:50.3]} 44. Kf2
{[%clk 0:03:48.4]} 44... Rxd5 {[%clk 0:03:47.9]} 45. Rxd5 {[%clk 0:03:47.4]}
45... Kxd5 {[%clk 0:03:47.8]} 46. Ke3 {[%clk 0:03:46.5]} 46... Kc6 {[%clk
0:03:46.9]} 47. Bg1 {[%clk 0:03:45.4]} 47... Kb5 {[%clk 0:03:45.6]} 48. Bf2
{[%clk 0:03:44.6]} 48... Kc6 {[%clk 0:03:44.8]} 49. Kf4 {[%clk 0:03:43.7]} 49...
Kb5 {[%clk 0:03:44.2]} 50. Kxg4 {[%clk 0:03:42.8]} 50... Kxb4 {[%clk 0:03:43.8]}
51. c6 {[%clk 0:03:42.2]} 51... Kxa5 {[%clk 0:03:43.3]} 52. c7 {[%clk
0:03:41.5]} 52... Kb4 {[%clk 0:03:43]} 53. c8=Q {[%clk 0:03:40.2]} 53... a5
{[%clk 0:03:42.6]} 54. Qb7+ {[%clk 0:03:39.4]} 54... Ka3 {[%clk 0:03:41.3]} 55.
Qb5 {[%clk 0:03:37.8]} 55... a4 {[%clk 0:03:40.8]} 56. Bc5+ {[%clk 0:03:36.9]}
56... Ka2 {[%clk 0:03:39.1]} 57. Qxa4+ {[%clk 0:03:35.9]} 57... Kb2 {[%clk
0:03:38.4]} 58. Bd4+ {[%clk 0:03:35.1]} 58... Kc1 {[%clk 0:03:35.7]} 59. Qc4+
{[%clk 0:03:33.5]} 59... Kd2 {[%clk 0:03:34.8]} 60. Qc3+ {[%clk 0:03:32.4]}
60... Ke2 {[%clk 0:03:34.3]} 61. Qe3+ {[%clk 0:03:31.1]} 61... Kd1 {[%clk
0:03:33.6]} 62. Bc3 {[%clk 0:03:28.4]} 62... Kc2 {[%clk 0:03:32.5]} 63. Qxf3
{[%clk 0:03:27.6]} 63... Kc1 {[%clk 0:03:27.5]} 64. Ba5 {[%clk 0:03:23.9]} 64...
Kc2 {[%clk 0:03:26.3]} 65. Qe3 {[%clk 0:03:22.3]} 65... Kb2 {[%clk 0:03:23.2]}
66. Kf4 {[%clk 0:03:20.3]} 66... Kc2 {[%clk 0:03:22.2]} 67. Ke4 {[%clk
0:03:19.2]} 67... Kb2 {[%clk 0:03:21.7]} 68. Kd4 {[%clk 0:03:18.3]} 68... Kc2
{[%clk 0:03:20.2]} 69. Kc4 {[%clk 0:03:17.4]} 69... Kb2 {[%clk 0:03:18.1]} 70.
Qd2+ {[%clk 0:03:16.4]} 70... Kb1 {[%clk 0:03:11.7]} 71. Kb3 {[%clk 0:03:15.4]}
71... Ka1 {[%clk 0:00:00.5]} 72. Qd1# {[%clk 0:03:14.1]} 1-0

[Event "Live Chess"]
[Site "Chess.com"]
[Date "2023.05.20"]
[Round "-"]
[White "grillage"]
[Black "BJAW87"]
[Result "1-0"]
[WhiteElo "1849"]
[BlackElo "1431"]
[TimeControl "300"]
[EndTime "15:03:23 PDT"]
[Termination "grillage won by resignation"]

1. d4 {[%clk 0:04:58.2]} 1... Nf6 {[%clk 0:04:58.4]} 2. Nc3 {[%clk 0:04:54.6]}
2... g6 {[%clk 0:04:57.3]} 3. Bf4 {[%clk 0:04:50.3]} 3... Bg7 {[%clk 0:04:56]}
4. e4 {[%clk 0:04:49.2]} 4... O-O {[%clk 0:04:53.6]} 5. e5 {[%clk 0:04:48.3]}
5... Ne8 {[%clk 0:04:53.1]} 6. Qe2 {[%clk 0:04:27.4]} 6... f6 {[%clk 0:04:48.7]}
7. O-O-O {[%clk 0:04:22.9]} 7... fxe5 {[%clk 0:04:45.5]} 8. dxe5 {[%clk
0:04:21]} 8... Rxf4 {[%clk 0:04:44]} 9. Nh3 {[%clk 0:04:12.5]} 9... Rf8 {[%clk
0:04:41.3]} 10. Ng5 {[%clk 0:04:07.8]} 10... e6 {[%clk 0:04:11.9]} 11. Nxe6
{[%clk 0:04:02.9]} 11... Bh6+ {[%clk 0:03:52.8]} 12. Kb1 {[%clk 0:03:59.9]}
12... Qe7 {[%clk 0:03:36.5]} 13. Nxf8 {[%clk 0:03:57]} 13... Kxf8 {[%clk
0:03:35.9]} 14. Qf3+ {[%clk 0:03:28.8]} 14... Kg7 {[%clk 0:03:33.9]} 15. Bc4
{[%clk 0:03:20.7]} 15... a6 {[%clk 0:03:07.4]} 16. h4 {[%clk 0:03:08.6]} 16...
b5 {[%clk 0:03:02]} 17. Qxa8 {[%clk 0:03:06.8]} 1-0